bitfinex-derivatives/quotes_BNBF0:USTF0_20250116
["timestamp","ask_amount","ask_price","bid_price","bid_amount"]
[1737045875298,1.05118108,712.58,711.74,0.495541]
[1737045875498,0.28062692,712.69,710.92,0.2813256]
[1737045875499,1.05118108,712.62,711.75,0.495541]
[1737045875701,1.05118108,712.62,711.76,0.495541]
[1737045875903,1.05118108,712.62,711.77,0.495541]
[1737045876104,1.05118108,712.62,711.18,1.04348647]
[1737045876105,1.05118108,712.62,711.78,0.495541]
[1737045876305,1.05118108,712.62,711.79,0.495541]
[1737045876501,1.05118108,712.62,711.8,0.495541]
[1737045876705,1.05118108,712.62,711.81,0.495541]
[1737045877005,1.05118108,712.62,711.82,0.495541]
[1737045877208,1.05118108,712.62,711.83,0.495541]
[1737045877408,1.05118108,712.62,711.84,0.495541]
[1737045877609,1.05118108,712.62,711.85,0.495541]
[1737045877806,1.05118108,712.58,711.86,0.495541]
[1737045878006,1.05118108,712.58,711.87,0.495541]
[1737045878206,1.05118108,712.58,711.23,1.04348647]
[1737045878207,1.05118108,712.58,711.88,0.495541]
[1737045878507,1.05118108,712.58,711.89,0.495541]
[1737045878706,1.05118108,712.6,711.9,0.495541]
[1737045878909,1.05118108,712.6,711.91,0.495541]
[1737045879107,1.05118108,712.6,711.92,0.495541]
[1737045879307,1.05118108,712.6,711.93,0.495541]
[1737045879502,1.05118108,712.6,711.25,1.04348647]
[1737045879808,0.28062692,712.69,711.26,1.79735471]
[1737045879809,1.05118108,712.59,711.26,1.79735471]
[1737045880007,1.05118108,712.59,711.27,0.75386824]
[1737045880206,1.05118108,712.59,711.28,0.75386824]
[1737045880409,1.05118108,712.59,711.29,0.75386824]
[1737045880608,1.05118108,712.59,711.3,0.75386824]
[1737045880808,1.05118108,712.61,711.31,0.75386824]
[1737045881008,1.05118108,712.61,711.32,0.75386824]
[1737045881305,1.05118108,712.61,711.33,0.75386824]
[1737045881609,1.05118108,712.61,711.34,1.03502774]
[1737045881811,1.05118108,712.61,711.35,1.03500363]
[1737045882009,1.05118108,712.61,711.36,0.75384809]
[1737045882309,0.28062692,712.69,711.37,0.75384809]
[1737045882511,0.28062692,712.69,711.38,0.75384809]
[1737045882706,0.28062692,712.69,711.39,0.75384809]
[1737045882909,0.28062692,712.69,711.4,0.75384809]
[1737045883109,1.05040207,712.64,711.41,1.03497992]
[1737045883309,1.05040207,712.64,711.42,0.75384809]
[1737045883505,1.05040207,712.64,711.41,0.28113183]
[1737045883506,1.05040207,712.64,711.43,0.75384809]
[1737045883711,1.05040207,712.64,711.44,0.75384809]
[1737045883903,1.05040207,712.64,711.45,0.75384809]
[1737045884107,1.05040207,712.64,711.46,0.75384809]
[1737045884312,1.05040207,712.64,711.47,0.75384809]
[1737045884512,1.05040207,712.64,711.48,0.75383336]
[1737045884812,1.05040207,712.64,711.49,0.49571667]
[1737045885010,0.28062692,712.69,711.41,1.32398745]
[1737045885011,1.05040207,712.63,711.5,0.7538448]
[1737045885208,1.05040207,712.63,711.42,1.04285562]
[1737045885209,1.05040207,712.63,711.51,0.75385387]
[1737045885410,1.05040207,712.63,711.52,0.75385387]
[1737045885605,1.05040207,712.63,711.42,1.04285562]
[1737045885606,1.05040207,712.63,711.53,0.49571667]
[1737045885807,1.05040207,712.63,711.54,0.49571667]
[1737045886011,1.05040207,712.63,711.55,0.49571667]
[1737045886211,1.05040207,712.48,711.56,0.49571667]
[1737045886409,1.05040207,712.48,711.57,0.49571667]
[1737045886612,1.05040207,712.48,711.58,0.49571667]
[1737045886806,1.05040207,712.48,711.59,0.49571667]
[1737045887014,1.05040207,712.48,711.6,0.49571667]
[1737045887212,1.05040207,712.48,711.61,0.49571667]
[1737045887412,1.05040207,712.48,711.62,0.49571667]
[1737045887613,1.05040207,712.48,711.63,0.49571667]
[1737045887814,1.05040207,712.48,711.64,0.49571667]
[1737045888112,1.05040207,712.48,711.65,0.49571667]
[1737045888311,1.05040207,712.48,711.66,0.49571667]
[1737045888514,1.05040207,712.48,711.67,0.49571667]
[1737045888815,1.05040207,712.54,711.68,0.49571667]
[1737045889112,1.05040207,712.54,711.69,0.49571667]
[1737045889312,1.05040207,712.54,711.7,0.49571667]
[1737045889513,1.05040207,712.54,711.71,0.49571667]
[1737045889715,1.05040207,712.6,711.72,0.49571667]
[1737045890013,1.05040207,712.6,711.73,0.49571667]
[1737045890208,1.05040207,712.6,711.74,0.49571667]
[1737045890415,1.05040207,712.6,711.75,0.49571667]
[1737045890713,1.05040207,712.6,711.76,0.49571667]
[1737045890914,1.05040207,712.6,711.52,1.04285562]
[1737045890915,1.05040207,712.6,711.77,0.49571667]
[1737045891113,1.05040207,712.6,711.78,0.49571667]
[1737045891313,1.05040207,712.6,711.79,0.49571667]
[1737045891513,1.05040207,712.6,711.8,0.49571667]
[1737045891710,1.05040207,712.66,711.81,0.49571667]
[1737045891914,1.05040207,712.66,711.82,0.49571667]
[1737045892110,1.05040207,712.66,711.83,0.49571667]
[1737045892320,1.05040207,712.66,711.84,0.49571667]
[1737045892519,1.05040207,712.66,711.85,0.49571667]
[1737045892720,0.28062692,712.69,711.86,0.49571667]
[1737045892917,0.28062692,712.69,711.87,0.49571667]
[1737045893116,0.28062692,712.69,711.88,0.49571667]
[1737045893319,0.28062692,712.69,711.89,0.49571667]
[1737045893523,0.28062692,712.69,711.9,0.49571667]
[1737045893722,0.28062692,712.69,711.91,0.49571667]
[1737045893921,0.28062692,712.69,711.49,1.04285562]
[1737045893922,0.28062692,712.69,711.92,0.49571667]
[1737045894121,0.28062692,712.69,711.49,1.04285562]
[1737045894122,0.28062692,712.69,711.93,0.49571667]
[1737045894324,0.28062692,712.69,711.94,0.49571667]
[1737045894521,0.28062692,712.69,711.95,0.49571667]
[1737045894726,0.28062692,712.69,711.96,0.49571667]
[1737045894921,0.28062692,712.69,711.41,0.28113183]
[1737045894922,0.28062692,712.69,711.97,0.49571667]
[1737045895120,0.28062692,712.69,711.98,0.49571667]
[1737045895325,0.28062692,712.69,711.99,0.49571667]
[1737045895527,0.28062692,712.69,712.0,0.49571667]
[1737045895722,0.28062692,712.69,712.01,0.49571667]
[1737045895920,0.28062692,712.69,712.02,0.49571667]
[1737045896125,0.28062692,712.69,711.41,1.32398745]
[1737045896126,0.28062692,712.69,712.03,0.49571667]
[1737045896324,0.28062692,712.69,712.04,0.49571667]
[1737045896526,0.28062692,712.69,712.05,0.49571667]
[1737045896727,0.28062692,712.69,712.06,0.49571667]
[1737045896928,0.28062692,712.69,711.41,0.28113183]
[1737045897126,0.28062692,712.69,711.42,0.75358743]
[1737045897322,0.28062692,712.69,711.43,0.4954662]
[1737045897526,0.28062692,712.69,711.44,0.4954662]
[1737045897727,0.28062692,712.69,711.45,0.4954662]
[1737045898025,0.28062692,712.69,711.46,0.4954662]
[1737045898222,1.04978261,712.59,711.47,0.4954662]
[1737045898423,1.04978261,712.59,711.48,0.4954662]
[1737045898626,1.04978261,712.59,711.49,0.4954662]
[1737045898927,1.04978261,712.59,711.5,0.4954662]
[1737045899128,1.04978261,712.59,711.41,0.28113183]
[1737045899129,1.04978261,712.59,711.51,0.4954662]
[1737045899326,1.04978261,712.59,711.52,0.4954662]
[1737045899627,1.04978261,712.59,711.53,0.4954662]
[1737045899824,1.04978261,712.59,711.54,0.4954662]
[1737045900027,1.04978261,712.59,711.55,0.4954662]
[1737045900230,1.04978261,712.59,711.56,0.4954662]
[1737045900530,1.04978261,712.59,711.57,0.4954662]
[1737045900828,1.04978261,712.59,711.58,0.4954662]
[1737045901028,1.04978261,712.59,711.59,0.4954662]
[1737045901228,1.04978261,712.59,711.6,0.4954662]
[1737045901428,1.04978261,712.59,711.61,0.4954662]
[1737045901622,1.04978261,712.59,711.62,0.4954662]
[1737045901825,1.04978261,712.6,711.63,0.4954662]
[1737045902026,1.04978261,712.6,711.64,0.4954662]
[1737045902229,1.04978261,712.6,711.65,0.4954662]
[1737045902428,1.04978261,712.6,711.66,0.4954662]
[1737045902728,1.04978261,712.6,711.67,0.4954662]
[1737045902929,0.28062692,712.69,711.41,0.28113183]
[1737045902930,0.28062692,712.69,711.68,0.4954662]
[1737045903230,0.28062692,712.69,711.69,0.4954662]
[1737045903530,0.28062692,712.69,711.7,0.4954662]
[1737045903733,0.28062692,712.69,711.71,0.4954662]
[1737045903931,0.28062692,712.69,711.72,0.4954662]
[1737045904128,0.28062692,712.69,711.73,0.4954662]
[1737045904333,0.28062692,712.69,711.74,0.4954662]
[1737045904533,0.28062692,712.69,711.75,0.4954662]
[1737045904734,1.04978261,712.97,711.76,0.4954662]
[1737045905033,1.04978261,712.97,711.77,0.4954662]
[1737045905235,1.04978261,713.03,711.78,0.4954662]
[1737045905431,1.04978261,713.03,711.79,0.4954662]
[1737045905627,1.04978261,713.03,711.8,0.4954662]
[1737045905832,1.04978261,713.03,711.81,0.4954662]
[1737045906029,1.04978261,713.03,711.82,0.4954662]
[1737045906229,1.04978261,713.31,711.83,0.4954662]
[1737045906533,0.28038693,713.3,711.84,0.4954662]
[1737045906734,0.28038693,713.3,711.85,0.4954662]
[1737045906936,0.28038693,713.3,711.86,0.4954662]
[1737045907234,0.28038693,713.3,711.87,0.4954662]
[1737045907430,0.28038693,713.3,711.88,0.4954662]
[1737045907637,0.28038693,713.3,711.89,0.4954662]
[1737045907837,0.28038693,713.3,711.9,0.4954662]
[1737045908135,0.28038693,713.3,711.91,0.4954662]
[1737045908335,0.28038693,713.3,711.92,0.4954662]
[1737045908534,0.28038693,713.3,711.93,0.4954662]
[1737045908730,0.28038693,713.3,711.94,0.4954662]
[1737045908930,0.28038693,713.3,711.95,0.4954662]
[1737045909135,0.28038693,713.3,711.96,0.4954662]
[1737045909331,0.28038693,713.3,711.97,0.4954662]
[1737045909636,0.28038693,713.3,711.98,0.4954662]
[1737045909837,0.28038693,713.3,711.99,0.4954662]
[1737045910038,0.28038693,713.3,711.41,0.28113183]
[1737045910039,0.28038693,713.3,712.0,0.4954662]
[1737045910331,0.28038693,713.3,712.01,0.4954662]
[1737045910536,0.28038693,713.3,712.02,0.4954662]
[1737045910735,0.28038693,713.3,712.03,0.4954662]
[1737045910938,0.28038693,713.3,711.41,0.28113183]
[1737045910939,0.28038693,713.3,712.04,0.4954662]
[1737045911131,0.28038693,713.3,712.05,0.4954662]
[1737045911335,0.28038693,713.3,712.06,0.4954662]
[1737045911632,1.46513464,713.29,712.07,0.4954662]
[1737045911837,1.46513464,713.29,712.08,0.4954662]
[1737045912040,1.46513464,713.29,711.41,0.28113183]
[1737045912041,1.46513464,713.29,712.09,0.4954662]
[1737045912239,1.46513464,713.29,712.1,0.4954662]
[1737045912441,1.46513464,713.29,712.11,0.4954662]
[1737045912634,1.46513464,713.29,712.12,0.4954662]
[1737045912939,1.46513464,713.29,712.13,0.4954662]
[1737045913136,1.46513464,713.29,712.14,0.4954662]
[1737045913333,1.46513464,713.29,712.15,0.4954662]
[1737045913541,1.46513464,713.29,712.16,0.4954662]
[1737045913835,1.46513464,713.29,712.17,0.4954662]
[1737045914037,1.46513464,713.29,712.18,0.4954662]
[1737045914237,1.46513464,713.29,712.19,0.4954662]
[1737045914440,1.46513464,713.29,712.2,0.4954662]
[1737045914641,1.46513464,713.29,712.21,0.4954662]
[1737045914841,1.46513464,713.29,712.22,0.4954662]
[1737045915042,1.46513464,713.29,712.23,0.4954662]
[1737045915239,1.46513464,713.29,712.24,0.4954662]
[1737045915441,0.28038693,713.3,712.25,0.4954662]
[1737045915739,0.28038693,713.3,711.41,0.28113183]
[1737045915740,0.28038693,713.3,712.26,0.4954662]
[1737045915935,0.28038693,713.3,711.43,1.04252781]
[1737045915936,0.28038693,713.3,712.27,0.4954662]
[1737045916141,0.28038693,713.3,712.28,0.4954662]
[1737045916339,0.28038693,713.3,712.29,0.4954662]
[1737045916540,0.28038693,713.3,712.3,0.4954662]
[1737045916740,0.28038693,713.3,712.31,0.4954662]
[1737045917044,0.28038693,713.3,712.32,0.4954662]
[1737045917243,0.28038693,713.3,712.33,0.4954662]
[1737045917443,0.28038693,713.3,711.54,1.04252781]
[1737045917642,0.28038693,713.3,711.55,1.34446312]
[1737045917838,0.28038693,713.3,711.56,1.34446312]
[1737045918043,0.28038693,713.3,711.54,1.04252781]
[1737045918044,0.28038693,713.3,711.6,1.04252781]
[1737045918245,0.28038693,713.3,711.61,1.34439728]
[1737045918545,0.28038693,713.3,711.62,1.34439728]
[1737045918848,0.28038693,713.3,711.63,1.34439728]
[1737045919045,0.28038693,713.3,711.64,1.34439728]
[1737045919347,0.28038693,713.3,711.65,0.49146918]
[1737045919546,0.28038693,713.3,711.66,0.49146918]
[1737045919745,0.28038693,713.3,711.67,0.74937453]
[1737045919946,0.28038693,713.3,711.68,0.74937179]
[1737045920147,0.28038693,713.3,711.69,0.74937179]
[1737045920347,0.28038693,713.3,711.7,0.74937179]
[1737045920548,0.28038693,713.3,711.71,0.74937179]
[1737045920846,0.28038693,713.3,711.72,0.74937179]
[1737045921043,0.28038693,713.3,711.73,0.74937179]
[1737045921348,0.28038693,713.3,711.74,0.74937179]
[1737045921548,0.28038693,713.3,711.75,0.74937179]
[1737045921747,0.28038693,713.3,711.76,0.74937179]
[1737045922047,0.28038693,713.3,711.77,0.49146918]
[1737045922347,0.28038693,713.3,711.78,0.74937329]
[1737045922548,0.28038693,713.3,711.79,0.74937329]
[1737045922749,0.28038693,713.3,711.8,0.74937329]
[1737045923048,0.28038693,713.3,711.81,0.74937329]
[1737045923243,0.28038693,713.3,711.82,0.74937329]
[1737045923549,0.28038693,713.3,711.83,0.74937329]
[1737045923848,0.28038693,713.3,711.84,0.74937329]
[1737045924049,0.28038693,713.3,711.85,0.74937329]
[1737045924248,0.28038693,713.3,711.86,0.74937329]
[1737045924450,0.28038693,713.3,711.58,1.04252781]
[1737045924451,0.28038693,713.3,711.87,0.74937329]
[1737045924649,0.28038693,713.3,711.41,0.28113183]
[1737045924650,0.28038693,713.3,711.88,0.49146918]
[1737045924849,0.28038693,713.3,711.89,0.74938736]
[1737045925049,0.28038693,713.3,711.9,0.74938736]
[1737045925248,0.28038693,713.3,711.91,0.74938736]
[1737045925450,0.28038693,713.3,711.92,0.49146918]
[1737045925751,0.28038693,713.3,711.91,0.25791818]
[1737045925752,0.28038693,713.3,711.93,0.74938736]
[1737045926045,0.28038693,713.3,711.94,0.74938736]
[1737045926351,0.28038693,713.3,711.95,0.74938736]
[1737045926653,0.28038693,713.3,711.41,0.28113183]
[1737045926654,0.28038693,713.3,711.96,0.74938736]
[1737045926845,0.28038693,713.3,711.97,0.74938736]
[1737045927150,0.28038693,713.3,711.98,0.74938736]
[1737045927446,0.28038693,713.3,711.99,0.74938736]
[1737045927651,0.28038693,713.3,712.0,0.49146918]
[1737045927845,0.28038693,713.3,712.01,0.49146918]
[1737045928050,0.28038693,713.3,712.02,0.49146918]
[1737045928351,0.28038693,713.3,712.03,0.49146918]
[1737045928545,0.28038693,713.3,712.04,0.49146918]
[1737045928746,0.28038693,713.3,712.05,0.49146918]
[1737045928946,0.28038693,713.3,712.06,0.49146918]
[1737045929145,0.28038693,713.3,712.07,0.49146918]
[1737045929351,0.28038693,713.3,712.08,0.49146918]
[1737045929550,0.28038693,713.3,712.09,0.49146918]
[1737045929745,0.28038693,713.3,712.1,0.49146918]
[1737045929949,0.28038693,713.3,712.11,0.49146918]
[1737045930148,0.28038693,713.3,712.12,0.49146918]
[1737045930350,0.28038693,713.3,711.46,1.04252781]
[1737045930351,0.28038693,713.3,712.13,0.49146918]
[1737045930550,0.28038693,713.3,712.14,0.49146918]
[1737045930751,0.28038693,713.3,712.15,0.49146918]
[1737045930952,0.28038693,713.3,712.16,0.49146918]
[1737045931251,0.28038693,713.3,711.46,1.04252781]
[1737045931252,0.28038693,713.3,712.17,0.49146918]
[1737045931451,0.28038693,713.3,712.18,0.49146918]
[1737045931746,0.28038693,713.3,712.19,0.49146918]
[1737045931952,0.28038693,713.3,712.2,0.49146918]
[1737045932250,0.28038693,713.3,712.21,0.49146918]
[1737045932452,0.28038693,713.3,711.48,1.04252781]
[1737045932750,0.28038693,713.3,711.49,1.34447897]
[1737045932948,0.28038693,713.3,711.5,1.34449842]
[1737045933146,0.28038693,713.3,711.51,1.34449842]
[1737045933350,0.28038693,713.3,711.52,1.34449842]
[1737045933552,0.28038693,713.3,711.53,1.34449842]
[1737045933847,0.28038693,713.3,711.54,1.34449842]
[1737045934152,0.28038693,713.3,711.55,1.34463933]
[1737045934351,0.28038693,713.3,711.41,0.28113183]
[1737045934352,1.04978261,713.19,711.56,1.34463933]
[1737045934552,1.04978261,713.19,711.57,1.34463933]
[1737045934753,1.04978261,713.19,711.58,1.34463933]
[1737045934951,1.04978261,713.19,711.59,1.34463933]
[1737045935152,1.04978261,713.1,711.67,1.04252781]
[1737045935454,1.04978261,713.1,711.68,0.74873875]
[1737045935647,1.04978261,713.1,711.69,0.49076388]
[1737045935952,1.04978261,713.1,711.7,0.74874345]
[1737045936154,1.04978261,713.1,711.71,0.74874345]
[1737045936355,1.33016954,713.3,711.41,0.28113183]
[1737045936356,1.04978261,713.13,711.72,0.74874345]
[1737045936653,1.04978261,713.13,711.73,0.74874345]
[1737045936854,1.04978261,713.13,711.74,0.49076388]
[1737045937049,1.04978261,713.13,711.77,1.04252781]
[1737045937254,0.28038693,713.3,711.78,1.08616915]
[1737045937255,1.04978261,713.27,711.78,1.08616915]
[1737045937450,1.04978261,713.27,711.79,1.34414872]
[1737045937653,1.04978261,713.27,711.8,1.34414872]
[1737045937954,1.04978261,713.27,711.81,1.34414872]
[1737045938154,1.04978261,713.27,711.82,1.34414872]
[1737045938356,1.04978261,713.26,711.93,1.04252781]
[1737045938658,1.04978261,713.26,711.94,0.74866551]
[1737045938951,1.04978261,713.26,711.95,0.74866551]
[1737045939151,1.04978261,713.26,711.96,0.74866551]
[1737045939350,1.04978261,713.26,711.97,0.74866551]
[1737045939556,1.04978261,713.25,711.98,0.74866551]
[1737045939856,1.04978261,713.25,711.99,0.74866551]
[1737045940057,1.04978261,713.25,712.0,0.74866551]
[1737045940357,1.04978261,713.25,712.01,0.74866551]
[1737045940551,1.04978261,713.25,712.02,0.74866551]
[1737045940754,1.04978261,713.25,711.75,1.04252781]
[1737045940755,1.04978261,713.25,712.03,0.74866551]
[1737045940950,1.04978261,713.25,712.04,0.74866551]
[1737045941155,1.04978261,713.25,712.05,0.74866854]
[1737045941355,1.04978261,713.25,712.06,0.74866854]
[1737045941551,1.04978261,713.25,711.97,1.04252781]
[1737045941552,1.04978261,713.25,712.07,0.74866854]
[1737045941752,1.04978261,713.25,711.97,1.04252781]
[1737045941753,1.04978261,713.25,712.08,0.74866854]
[1737045941952,1.04978261,713.24,712.09,0.74866801]
[1737045942152,1.04978261,713.24,712.1,0.74866801]
[1737045942357,1.04978261,713.24,712.11,0.74866801]
[1737045942662,1.04978261,713.23,712.12,0.74866801]
[1737045942957,1.04978261,713.23,712.13,0.74866801]
[1737045943157,1.04978261,713.23,712.14,0.74866801]
[1737045943360,1.04978261,713.23,712.15,0.49076388]
[1737045943558,1.04978261,713.23,712.16,0.49076388]
[1737045943859,1.04978261,713.23,712.17,0.49076388]
[1737045944153,1.04978261,713.24,712.18,0.49076388]
[1737045944353,1.04978261,713.24,712.19,0.49076388]
[1737045944552,1.04978261,713.24,712.2,0.49076388]
[1737045944756,1.04978261,713.24,712.21,0.49076388]
[1737045944956,1.04978261,713.25,712.22,0.49076388]
[1737045945157,1.04978261,713.25,712.23,0.49076388]
[1737045945357,1.04978261,713.25,712.24,0.49076388]
[1737045945555,1.04978261,713.25,712.25,0.49076388]
[1737045945753,1.04978261,713.25,712.26,0.49076388]
[1737045945955,1.04978261,713.2,712.27,0.49076388]
[1737045946259,1.04978261,713.2,712.28,0.49076388]
[1737045946459,1.04978261,713.2,712.29,0.49076388]
[1737045946660,1.04978261,713.2,712.3,0.49076388]
[1737045946853,1.04978261,713.19,712.31,0.49076388]
[1737045947054,1.04978261,713.19,712.32,0.49076388]
[1737045947258,1.04978261,713.19,712.33,0.49076388]
[1737045947559,1.04978261,713.19,712.34,0.49076388]
[1737045947854,0.28038693,713.3,711.96,1.04252781]
[1737045947855,1.04978261,713.2,712.35,0.49076388]
[1737045948058,1.04978261,713.2,712.36,0.49076388]
[1737045948258,1.04978261,713.2,712.37,0.49076388]
[1737045948455,1.04978261,713.2,712.38,0.49076388]
[1737045948659,1.04978261,713.2,712.39,0.49076388]
[1737045948858,1.04978261,713.2,712.4,0.49076388]
[1737045949158,0.28038693,713.3,711.94,1.04252781]
[1737045949159,1.04978261,713.18,712.41,0.49076388]
[1737045949361,1.04978261,713.18,712.42,0.49076388]
[1737045949560,1.04978261,713.18,712.43,0.49076388]
[1737045949761,1.04978261,713.18,712.44,0.49076388]
[1737045949954,1.04978261,713.18,712.45,0.49076388]
[1737045950157,1.04978261,713.18,712.46,0.49076388]
[1737045950355,1.04978261,713.15,712.47,0.49076388]
[1737045950557,1.04978261,713.15,712.48,0.49076388]
[1737045950758,1.04978261,713.15,712.49,0.49076388]
[1737045950960,1.04978261,713.15,712.5,0.49076388]
[1737045951258,1.04978261,713.15,711.47,1.25103338]
[1737045951259,1.04978261,713.2,711.94,1.04252781]
[1737045951458,1.04978261,713.2,711.95,1.03022362]
[1737045951654,1.04978261,713.2,711.96,1.03021967]
[1737045951859,1.04978261,713.2,711.97,1.03021573]
[1737045952060,1.04978261,713.2,711.98,0.77229697]
[1737045952360,1.04978261,713.2,711.99,0.74930337]
[1737045952556,1.04978261,713.19,712.0,0.74930337]
[1737045952760,1.04978261,713.19,712.01,0.49139021]
[1737045952956,1.04978261,713.19,712.02,0.49139021]
[1737045953153,1.04978261,713.19,712.03,0.49139021]
[1737045953358,1.04978261,713.19,712.04,0.49139021]
[1737045953657,1.04978261,713.19,712.05,0.49139021]
[1737045953858,1.04978261,713.02,712.06,0.49139021]
[1737045954055,1.04978261,713.02,712.07,0.49139021]
[1737045954261,1.04978261,713.02,712.08,0.49139021]
[1737045954553,1.04978261,713.02,712.09,0.49139021]
[1737045954760,1.04978261,713.02,712.1,0.49139021]
[1737045954959,1.04978261,713.01,712.11,0.49139021]
[1737045955261,1.04978261,713.01,712.12,0.49139021]
[1737045955461,1.04978261,713.01,712.13,0.49139021]
[1737045955661,1.04978261,713.01,712.14,0.49139021]
[1737045955956,1.04978261,713.06,712.15,0.49139021]
[1737045956161,1.04978261,713.06,712.16,0.49139021]
[1737045956460,1.04978261,713.06,712.17,0.49139021]
[1737045956661,1.04978261,713.06,712.18,0.49139021]
[1737045956862,1.04978261,713.06,711.98,0.28090676]
[1737045957062,1.04978261,713.06,711.99,0.49222781]
[1737045957262,1.04978261,713.06,712.0,0.49222781]
[1737045957456,1.04978261,713.06,712.01,0.49222781]
[1737045957662,1.04978261,713.06,712.02,0.49222781]
[1737045957861,1.04978261,713.06,712.03,0.49222781]
[1737045958162,1.04978261,713.06,712.04,0.49222781]
[1737045958358,1.04978261,713.06,712.05,0.49222781]
[1737045958563,1.04978261,713.06,712.06,0.49222781]
[1737045958763,1.04978261,713.06,712.07,0.49222781]
[1737045958956,1.04978261,713.06,712.08,0.49222781]
[1737045959160,1.04978261,713.06,712.09,0.49222781]
[1737045959358,1.04978261,713.06,712.1,0.49222781]
[1737045959564,1.04978261,712.98,712.11,0.49222781]
[1737045959765,1.04978261,712.98,712.12,0.49222781]
[1737045960064,1.04978261,712.98,712.13,0.49222781]
[1737045960263,1.04978261,712.98,712.14,0.49222781]
[1737045960467,1.04978261,712.98,712.15,0.49222781]
[1737045960766,1.04978261,712.98,712.16,0.49222781]
[1737045960961,1.04978261,712.93,712.17,0.49222781]
[1737045961165,1.04978261,712.93,712.18,0.49222781]
[1737045961366,1.04978261,712.93,712.19,0.49222781]
[1737045961666,1.04978261,712.93,712.2,0.49222781]
[1737045961868,1.04978261,712.93,712.21,0.49222781]
[1737045962071,1.04978261,712.97,712.22,0.49222781]
[1737045962370,1.04978261,712.97,711.98,0.28090676]
[1737045962371,1.04978261,712.97,712.23,0.49222781]
[1737045962561,1.04978261,712.97,712.24,0.49222781]
[1737045962764,1.04978261,712.97,712.25,0.49222781]
[1737045962963,1.04978261,712.97,712.26,0.49222781]
[1737045963167,1.04978261,712.97,712.27,0.49222781]
[1737045963368,1.04978261,712.97,712.28,0.49222781]
[1737045963568,1.04978261,712.97,712.29,0.49222781]
[1737045963767,1.04978261,712.97,712.3,0.49222781]
[1737045963967,1.04978261,712.97,712.31,0.49222781]
[1737045964169,1.04978261,713.01,712.32,0.49222781]
[1737045964370,1.04978261,713.01,712.33,0.49222781]
[1737045964561,1.04978261,713.01,712.34,0.49222781]
[1737045964765,1.04978261,713.01,712.35,0.49222781]
[1737045965062,1.04978261,713.08,712.36,0.49222781]
[1737045965262,1.04978261,713.08,712.37,0.49222781]
[1737045965465,1.04978261,713.08,711.98,0.28090676]
[1737045965671,1.04978261,713.08,711.99,0.49401926]
[1737045965867,1.04978261,713.08,712.0,0.49401926]
[1737045966062,1.04978261,713.08,712.01,0.49401926]
[1737045966267,1.04978261,713.05,712.02,0.49401926]
[1737045966463,1.04978261,713.05,712.03,0.49401926]
[1737045966670,1.04978261,713.05,712.04,0.49401926]
[1737045966864,1.04978261,713.05,712.05,0.49401926]
[1737045967169,1.04978261,713.05,712.06,0.49401926]
[1737045967364,1.04978261,713.05,711.98,0.28090676]
[1737045967365,1.04978261,713.05,712.07,0.49401926]
[1737045967669,1.04978261,713.05,712.08,0.49401926]
[1737045967869,1.04978261,713.05,712.09,0.49401926]
[1737045968064,1.04978261,713.05,712.1,0.49301835]
[1737045968270,1.04978261,713.09,712.11,0.49301835]
[1737045968463,1.04978261,713.09,712.12,0.49301835]
[1737045968664,1.04978261,713.09,712.13,0.49301835]
[1737045968968,1.04978261,713.09,712.14,0.49301835]
[1737045969162,1.04978261,713.09,711.98,0.28090676]
[1737045969163,1.04978261,713.09,712.15,0.49301835]
[1737045969363,1.04978261,713.07,712.16,0.49301835]
[1737045969569,1.04978261,713.07,712.17,0.49301835]
[1737045969864,1.04978261,713.07,712.18,0.49301835]
[1737045970068,1.04978261,713.07,711.98,0.28090676]
[1737045970069,1.04978261,713.07,712.19,0.49301835]
[1737045970270,1.04978261,713.07,711.98,0.28090676]
[1737045970271,1.04978261,713.22,712.2,0.49301835]
[1737045970471,1.04978261,713.22,712.21,0.49301835]
[1737045970669,1.04978261,713.22,712.22,0.49301835]
[1737045970870,1.04978261,713.22,712.23,0.49301835]
[1737045971069,1.04978261,713.22,712.24,0.49301835]
[1737045971270,1.04978261,713.22,712.25,0.49301835]
[1737045971472,0.28038693,713.3,711.98,0.28090676]
[1737045971473,1.04978261,713.29,712.26,0.49301835]
[1737045971669,1.04978261,713.29,712.27,0.49301835]
[1737045971870,1.04978261,713.29,712.28,0.49301835]
[1737045972070,1.04978261,713.29,712.29,0.49301835]
[1737045972371,1.04978261,713.29,712.3,0.49301835]
[1737045972572,1.04978261,713.06,711.61,1.04252781]
[1737045972872,1.04978261,713.06,711.62,0.75148306]
[1737045973065,1.04978261,713.06,711.63,0.75148306]
[1737045973272,1.04978261,713.06,711.64,0.75148306]
[1737045973471,1.04978261,713.06,711.65,0.49342819]
[1737045973670,1.04978261,712.83,711.66,0.75148741]
[1737045973867,1.04978261,712.83,711.67,0.75132829]
[1737045974170,1.04978261,712.83,711.68,0.75132829]
[1737045974465,1.04978261,712.83,711.69,1.03229924]
[1737045974671,1.04978261,712.91,711.7,0.75127801]
[1737045974870,1.04978261,712.91,711.71,0.75127801]
[1737045975067,1.04978261,712.91,711.72,0.75127801]
[1737045975270,1.04978261,712.91,711.73,0.75127801]
[1737045975470,1.04978261,712.91,711.74,0.75127801]
[1737045975772,1.04978261,713.19,711.75,0.75127801]
[1737045975972,1.04978261,713.19,711.76,0.75127801]